fUSD/lending_fUSD_20260630
["ID","MTS","AMOUNT","RATE_DAILY","PERIOD"]
[426699484,1782750643000,-500.0,0.00030136,15]
[426699482,1782750643000,-500.0,0.00030136,15]
[426699476,1782750643000,-500.0,0.00030136,15]
[426699464,1782750643000,-1000.13,0.00030136,2]
[426699485,1782750643000,-574.24997663,0.00030136,15]
[426699475,1782750643000,-402.18706998,0.00030136,2]
[426699479,1782750643000,-500.0,0.00030136,15]
[426699481,1782750643000,-500.0,0.00030136,15]
[426699480,1782750643000,-500.0,0.00030136,15]
[426699486,1782750643000,-300.0,0.00030136,2]
[426699492,1782750643000,-300.0,0.00030136,2]
[426699489,1782750643000,-300.0,0.00030136,2]
[426699487,1782750643000,-300.0,0.00030136,2]
[426699493,1782750643000,-300.0,0.00030136,2]
[426699488,1782750643000,-300.0,0.00030136,2]
[426699490,1782750643000,-300.0,0.00030136,2]
[426699435,1782750643000,-22499.87,0.0003,2]
[426699478,1782750643000,-500.0,0.00030136,15]
[426699473,1782750643000,-500.0,0.00030136,2]
[426699491,1782750643000,-300.0,0.00030136,2]
[426699461,1782750643000,-1000.13,0.00030136,2]
[426699463,1782750643000,-1000.13,0.00030136,2]
[426699437,1782750643000,-12499.87,0.0003,2]
[426699439,1782750643000,-9999.85,0.0003,2]
[426699441,1782750643000,-800.0,0.0003,2]
[426699438,1782750643000,-14351.59,0.0003,2]
[426699449,1782750643000,-1000.13,0.00030136,2]
[426699443,1782750643000,-800.0,0.0003,2]
[426699448,1782750643000,-1000.13,0.00030136,2]
[426699440,1782750643000,-200.14986379,0.0003,2]
[426699442,1782750643000,-800.0,0.0003,2]
[426699444,1782750643000,-330.43,0.0003,7]
[426699446,1782750643000,-1652.57,0.000301,7]
[426699447,1782750643000,-182.861763,0.00030135,10]
[426699434,1782750643000,-186.66021149,0.00029977,2]
[426699451,1782750643000,-1000.13,0.00030136,2]
[426699472,1782750643000,-1000.19777974,0.00030136,2]
[426699462,1782750643000,-1000.13,0.00030136,2]
[426699460,1782750643000,-1000.13,0.00030136,2]
[426699452,1782750643000,-1000.13,0.00030136,2]
[426699445,1782750643000,-319.55,0.0003004,120]
[426699457,1782750643000,-1000.13,0.00030136,2]
[426699458,1782750643000,-1000.13,0.00030136,2]
[426699456,1782750643000,-1000.13,0.00030136,2]
[426699455,1782750643000,-1000.13,0.00030136,2]
[426699454,1782750643000,-1000.13,0.00030136,2]
[426699450,1782750643000,-1000.13,0.00030136,2]
[426699453,1782750643000,-1000.13,0.00030136,2]
[426699459,1782750643000,-1000.13,0.00030136,2]
[426699536,1782750644000,-251.0,0.0003069,2]
[426699533,1782750644000,-251.0,0.0003069,2]
[426699530,1782750644000,-251.0,0.0003069,2]
[426699528,1782750644000,-388.24831335,0.00030578,2]
[426699517,1782750644000,-251.0,0.0003036,2]
[426699539,1782750644000,-2000.0,0.00030712,7]
[426699529,1782750644000,-500.0,0.00030588,20]
[426699525,1782750644000,-200.14006405,0.00030534,7]
[426699526,1782750644000,-3554.50170707,0.00030541,28]
[426699524,1782750644000,-800.0,0.000305,2]
[426699540,1782750644000,-208.0,0.00030762,30]
[426699531,1782750644000,-251.0,0.0003069,2]
[426699541,1782750644000,-185.0,0.00030762,30]
[426699537,1782750644000,-251.0,0.0003069,2]
[426699538,1782750644000,-254.66279003,0.0003069,2]
[426699532,1782750644000,-251.0,0.0003069,2]
[426699535,1782750644000,-251.0,0.0003069,2]
[426699543,1782750644000,-154.0,0.00030762,30]
[426699544,1782750644000,-437.0,0.00030762,30]
[426699542,1782750644000,-158.0,0.00030762,30]
[426699552,1782750644000,-151.94379609,0.00030826,2]
[426699548,1782750644000,-160.0,0.00030765,30]
[426699546,1782750644000,-157.0,0.00030762,30]
[426699550,1782750644000,-4713.728,0.00030775,27]
[426699519,1782750644000,-152.5325826,0.00030477,7]
[426699534,1782750644000,-251.0,0.0003069,2]
[426699520,1782750644000,-151.94379609,0.00030482,2]
[426699509,1782750644000,-751.0,0.0003016,2]
[426699521,1782750644000,-1195.58,0.000305,30]
[426699497,1782750644000,-300.0,0.00030136,2]
[426699496,1782750644000,-300.0,0.00030136,2]
[426699495,1782750644000,-300.0,0.00030136,2]
[426699494,1782750644000,-300.0,0.00030136,2]
[426699499,1782750644000,-300.0,0.00030136,2]
[426699498,1782750644000,-300.0,0.00030136,2]
[426699501,1782750644000,-158.0630318,0.00030137,2]
[426699503,1782750644000,-218.48299926,0.00030137,2]
[426699502,1782750644000,-316.12606361,0.00030137,2]
[426699500,1782750644000,-185.67251033,0.00030136,2]
[426699507,1782750644000,-151.94379609,0.00030137,2]
[426699506,1782750644000,-1831.97928048,0.00030137,2]
[426699518,1782750644000,-251.0,0.0003036,2]
[426699504,1782750644000,-436.96599853,0.00030137,2]
[426699512,1782750644000,-316.57964246,0.0003016,2]
[426699514,1782750644000,-500.0,0.00030234,15]
[426699511,1782750644000,-182.78583875,0.0003016,2]
[426699510,1782750644000,-242.0,0.0003016,2]
[426699508,1782750644000,-242.0,0.0003016,2]
[426699513,1782750644000,-152.5325826,0.0003018,5]
[426699515,1782750644000,-305.11921922,0.0003036,2]
[426699516,1782750644000,-251.0,0.0003036,2]
[426699522,1782750644000,-800.0,0.000305,2]
[426699545,1782750644000,-153.0,0.00030762,30]
[426699527,1782750644000,-4809.3606,0.00030541,28]
[426699523,1782750644000,-800.0,0.000305,2]
[426699505,1782750644000,-152.5325826,0.00030137,2]
[426699551,1782750644000,-386.511,0.00030775,27]
[426699579,1782750644000,-150.0,0.0003129,30]
[426699549,1782750644000,-154.0,0.00030765,30]
[426699582,1782750644000,-150.0,0.0003129,30]
[426699580,1782750644000,-150.0,0.0003129,30]
[426699585,1782750644000,-150.0,0.0003129,30]
[426699583,1782750644000,-150.0,0.0003129,30]
[426699586,1782750644000,-150.0,0.0003129,30]
[426699589,1782750644000,-251.0,0.0003135,2]
[426699590,1782750644000,-251.0,0.0003135,2]
[426699592,1782750644000,-251.0,0.0003135,2]
[426699598,1782750644000,-150.0,0.000315,2]
[426699595,1782750644000,-685.34,0.00031366,60]
[426699596,1782750644000,-200.0,0.000314,4]
[426699600,1782750644000,-800.0,0.000315,2]
[426699597,1782750644000,-800.0,0.000315,2]
[426699599,1782750644000,-800.0,0.000315,2]
[426699593,1782750644000,-251.0,0.0003135,2]
[426699601,1782750644000,-500.0,0.00031506,22]
[426699591,1782750644000,-251.0,0.0003135,2]
[426699594,1782750644000,-1195.58,0.0003135,30]
[426699602,1782750644000,-755.480708,0.00031507,7]
[426699604,1782750644000,-200.14006405,0.00031534,7]
[426699605,1782750644000,-258.8322089,0.00031578,7]
[426699606,1782750644000,-350.56901622,0.00031672,2]
[426699608,1782750644000,-185.0,0.00031762,30]
[426699607,1782750644000,-208.0,0.00031762,30]
[426699547,1782750644000,-385.0,0.00030762,30]
[426699576,1782750644000,-182.861763,0.00031286,10]
[426699581,1782750644000,-150.0,0.0003129,30]
[426699603,1782750644000,-151.94379609,0.00031516,2]
[426699588,1782750644000,-150.0,0.0003129,30]
[426699587,1782750644000,-150.0,0.0003129,30]
[426699564,1782750644000,-251.0,0.0003102,2]
[426699554,1782750644000,-319.57,0.00030862,120]
[426699555,1782750644000,-330.43,0.000309,7]
[426699553,1782750644000,-150.0,0.00030841,2]
[426699558,1782750644000,-1652.57,0.00031,7]
[426699557,1782750644000,-1000.0,0.00031,7]
[426699561,1782750644000,-800.0,0.00031,2]
[426699563,1782750644000,-251.0,0.0003102,2]
[426699560,1782750644000,-800.0,0.00031,2]
[426699559,1782750644000,-800.0,0.00031,2]
[426699562,1782750644000,-251.0,0.0003102,2]
[426699565,1782750644000,-251.0,0.0003102,2]
[426699556,1782750644000,-1195.58,0.00030925,30]
[426699566,1782750644000,-251.0,0.0003102,2]
[426699578,1782750644000,-152.5325826,0.00031286,10]
[426699567,1782750644000,-251.0,0.0003102,2]
[426699584,1782750644000,-151.22945691,0.0003129,30]
[426699577,1782750644000,-182.861763,0.00031286,10]
[426699570,1782750644000,-1367.47022828,0.00031139,2]
[426699574,1782750644000,-151.94379609,0.00031171,2]
[426699573,1782750644000,-1368.12504179,0.00031145,2]
[426699569,1782750644000,-470.53,0.000311,7]
[426699575,1782750644000,-500.0,0.0003125,16]
[426699571,1782750644000,-1386.44105419,0.00031145,2]
[426699568,1782750644000,-251.0,0.0003102,2]
[426699572,1782750644000,-1418.98984296,0.00031145,2]
[426699632,1782750645000,-1585.74,0.00032232,7]
[426699628,1782750645000,-688.0,0.0003206,5]
[426699635,1782750645000,-211.01,0.00032232,7]
[426699637,1782750645000,-2000.0,0.0003226,7]
[426699634,1782750645000,-14488.13,0.00032232,7]
[426699633,1782750645000,-483.04,0.00032232,7]
[426699636,1782750645000,-182.861763,0.00032259,10]
[426699638,1782750645000,-500.0,0.00032266,17]
[426699640,1782750645000,-500.0,0.00032451,24]
[426699644,1782750645000,-151.94379609,0.0003255,2]
[426699641,1782750645000,-800.0,0.000325,5]
[426699643,1782750645000,-800.0,0.000325,5]
[426699642,1782750645000,-800.0,0.000325,5]
[426699647,1782750645000,-470.53,0.000326,7]
[426699648,1782750645000,-208.0,0.00032762,30]
[426699645,1782750645000,-258.8322089,0.00032578,7]
[426699631,1782750645000,-296.64,0.00032232,7]
[426699646,1782750645000,-330.43,0.000326,7]
[426699639,1782750645000,-150.0,0.00032383,2]
[426699625,1782750645000,-800.0,0.00032,5]
[426699624,1782750645000,-800.0,0.00032,5]
[426699629,1782750645000,-1195.58,0.000322,30]
[426699649,1782750645000,-185.0,0.00032762,30]
[426699612,1782750645000,-153.0,0.00031762,30]
[426699610,1782750645000,-164.0,0.00031762,30]
[426699609,1782750645000,-158.0,0.00031762,30]
[426699611,1782750645000,-437.0,0.00031762,30]
[426699618,1782750645000,-330.43,0.000318,7]
[426699613,1782750645000,-157.0,0.00031762,30]
[426699619,1782750645000,-151.94379609,0.00031861,2]
[426699630,1782750645000,-151.94379609,0.00032205,2]
[426699614,1782750645000,-385.0,0.00031762,30]
[426699622,1782750645000,-1409.5877,0.00032,2]
[426699620,1782750645000,-366.8,0.00031897,3]
[426699617,1782750645000,-1195.58,0.00031775,30]
[426699615,1782750645000,-160.0,0.00031765,30]
[426699621,1782750645000,-178.37,0.00031963,2]
[426699623,1782750645000,-1652.57,0.00032,7]
[426699626,1782750645000,-800.0,0.00032,5]
[426699627,1782750645000,-371.10278108,0.00032,7]
[426699616,1782750645000,-154.0,0.00031765,30]
[426699651,1782750645000,-437.0,0.00032762,30]
[426699653,1782750645000,-157.0,0.00032762,30]
[426699650,1782750645000,-158.0,0.00032762,30]
[426699674,1782750645000,-1000.0,0.00032877,10]
[426699676,1782750645000,-1000.0,0.00032877,10]
[426699678,1782750645000,-1000.0,0.00032877,10]
[426699677,1782750645000,-1000.0,0.00032877,10]
[426699680,1782750645000,-1000.0,0.00032877,10]
[426699681,1782750645000,-1000.0,0.00032877,10]
[426699679,1782750645000,-1000.0,0.00032877,10]
[426699682,1782750645000,-1000.0,0.00032877,10]
[426699673,1782750645000,-1000.0,0.00032877,10]
[426699683,1782750645000,-1000.0,0.00032877,10]
[426699685,1782750645000,-1000.0,0.00032877,10]
[426699688,1782750645000,-1000.0,0.00032877,10]
[426699687,1782750645000,-1000.0,0.00032877,10]
[426699691,1782750645000,-1000.0,0.00032877,10]
[426699689,1782750645000,-1000.0,0.00032877,10]
[426699690,1782750645000,-1000.0,0.00032877,10]
[426699692,1782750645000,-1000.0,0.00032877,10]
[426699693,1782750645000,-1000.0,0.00032877,10]
[426699686,1782750645000,-1000.0,0.00032877,10]
[426699672,1782750645000,-1000.0,0.00032877,10]
[426699684,1782750645000,-1000.0,0.00032877,10]
[426699671,1782750645000,-1000.0,0.00032877,10]
[426699675,1782750645000,-1000.0,0.00032877,10]
[426699652,1782750645000,-153.0,0.00032762,30]
[426699656,1782750645000,-154.0,0.00032765,30]
[426699657,1782750645000,-1652.57,0.000328,7]
[426699658,1782750645000,-157.0,0.00032829,3]
[426699654,1782750645000,-385.0,0.00032762,30]
[426699660,1782750645000,-500.0,0.00032876,14]
[426699659,1782750645000,-152.5325826,0.00032861,12]
[426699663,1782750645000,-1000.0,0.00032877,10]
[426699655,1782750645000,-160.59292995,0.00032765,30]
[426699666,1782750645000,-1000.0,0.00032877,10]
[426699662,1782750645000,-1000.0,0.00032877,10]
[426699664,1782750645000,-1000.0,0.00032877,10]
[426699665,1782750645000,-1000.0,0.00032877,10]
[426699667,1782750645000,-1000.0,0.00032877,10]
[426699669,1782750645000,-1000.0,0.00032877,10]
[426699668,1782750645000,-1000.0,0.00032877,10]
[426699661,1782750645000,-1000.0,0.00032877,10]
[426699670,1782750645000,-1000.0,0.00032877,10]
[426699742,1782750646000,-500.0,0.00033,20]
[426699732,1782750646000,-500.0,0.00033,20]
[426699730,1782750646000,-500.0,0.00033,20]
[426699726,1782750646000,-500.0,0.00033,20]
[426699728,1782750646000,-500.0,0.00033,20]
[426699721,1782750646000,-500.0,0.00033,20]
[426699727,1782750646000,-500.0,0.00033,20]
[426699725,1782750646000,-500.0,0.00033,20]
[426699731,1782750646000,-500.0,0.00033,20]
[426699720,1782750646000,-500.0,0.00033,20]
[426699729,1782750646000,-500.0,0.00033,20]
[426699733,1782750646000,-500.0,0.00033,20]
[426699743,1782750646000,-500.0,0.00033,20]
[426699735,1782750646000,-500.0,0.00033,20]
[426699736,1782750646000,-500.0,0.00033,20]
[426699739,1782750646000,-500.0,0.00033,20]
[426699738,1782750646000,-500.0,0.00033,20]
[426699741,1782750646000,-500.0,0.00033,20]
[426699737,1782750646000,-500.0,0.00033,20]
[426699740,1782750646000,-500.0,0.00033,20]
[426699746,1782750646000,-500.0,0.00033,20]
[426699745,1782750646000,-500.0,0.00033,20]
[426699753,1782750646000,-500.0,0.00033,20]
[426699747,1782750646000,-500.0,0.00033,20]
[426699722,1782750646000,-500.0,0.00033,20]
[426699734,1782750646000,-500.0,0.00033,20]
[426699719,1782750646000,-500.0,0.00033,20]
[426699698,1782750646000,-500.0,0.00032877,2]
[426699724,1782750646000,-500.0,0.00033,20]
[426699695,1782750646000,-1000.0,0.00032877,10]
[426699694,1782750646000,-1000.0,0.00032877,10]
[426699696,1782750646000,-1000.0,0.00032877,10]
[426699697,1782750646000,-455.0,0.00032877,10]
[426699707,1782750646000,-500.0,0.00033,20]
[426699699,1782750646000,-500.0,0.00032877,2]
[426699744,1782750646000,-500.0,0.00033,20]
[426699708,1782750646000,-500.0,0.00033,20]
[426699701,1782750646000,-151.94379609,0.00032895,2]
[426699700,1782750646000,-354.05,0.00032892,3]
[426699702,1782750646000,-500.0,0.00033,20]
[426699703,1782750646000,-500.0,0.00033,20]
[426699706,1782750646000,-500.0,0.00033,20]
[426699704,1782750646000,-500.0,0.00033,20]
[426699705,1782750646000,-500.0,0.00033,20]
[426699710,1782750646000,-500.0,0.00033,20]
[426699709,1782750646000,-500.0,0.00033,20]
[426699716,1782750646000,-500.0,0.00033,20]
[426699718,1782750646000,-500.0,0.00033,20]
[426699713,1782750646000,-500.0,0.00033,20]
[426699717,1782750646000,-500.0,0.00033,20]
[426699715,1782750646000,-500.0,0.00033,20]
[426699714,1782750646000,-500.0,0.00033,20]
[426699711,1782750646000,-500.0,0.00033,20]
[426699712,1782750646000,-500.0,0.00033,20]
[426699723,1782750646000,-500.0,0.00033,20]
[426699749,1782750646000,-500.0,0.00033,20]
[426699792,1782750646000,-800.0,0.000335,5]
[426699752,1782750646000,-500.0,0.00033,20]
[426699785,1782750646000,-300.17996542,0.00033031,2]
[426699780,1782750646000,-150.0,0.00033029,30]
[426699782,1782750646000,-150.0,0.00033029,30]
[426699784,1782750646000,-488.0,0.00033031,3]
[426699786,1782750646000,-151.94379609,0.00033239,2]
[426699787,1782750646000,-154.6391,0.00033262,2]
[426699788,1782750646000,-500.0,0.00033281,18]
[426699789,1782750646000,-449.2593659,0.0003333,7]
[426699790,1782750646000,-224.0,0.00033396,2]
[426699791,1782750646000,-200.0,0.000334,8]
[426699793,1782750646000,-800.0,0.000335,5]
[426699799,1782750646000,-800.36,0.00033651,2]
[426699798,1782750646000,-576.37741715,0.00033595,2]
[426699797,1782750646000,-151.94379609,0.00033584,2]
[426699794,1782750646000,-330.43,0.000335,7]
[426699795,1782750646000,-800.0,0.000335,5]
[426699800,1782750646000,-65502.75413252,0.0003366,2]
[426699796,1782750646000,-800.36,0.00033577,2]
[426699801,1782750646000,-2280.56935788,0.00033732,7]
[426699802,1782750646000,-188852.62057075,0.00033732,7]
[426699804,1782750646000,-416.5023,0.00033735,7]
[426699806,1782750646000,-208.0,0.00033762,30]
[426699807,1782750646000,-185.0,0.00033762,30]
[426699754,1782750646000,-500.0,0.00033,20]
[426699805,1782750646000,-415.391164,0.00033735,7]
[426699783,1782750646000,-150.0,0.00033029,30]
[426699781,1782750646000,-150.0,0.00033029,30]
[426699803,1782750646000,-113009.75569812,0.00033732,7]
[426699773,1782750646000,-180.10797925,0.00033,30]
[426699775,1782750646000,-21200.0,0.00033,7]
[426699748,1782750646000,-500.0,0.00033,20]
[426699750,1782750646000,-500.0,0.00033,20]
[426699751,1782750646000,-500.0,0.00033,20]
[426699757,1782750646000,-500.0,0.00033,20]
[426699767,1782750646000,-500.0,0.00033,20]
[426699759,1782750646000,-500.0,0.00033,20]
[426699758,1782750646000,-500.0,0.00033,20]
[426699756,1782750646000,-500.0,0.00033,20]
[426699760,1782750646000,-500.0,0.00033,20]
[426699761,1782750646000,-500.0,0.00033,20]
[426699762,1782750646000,-500.0,0.00033,20]
[426699763,1782750646000,-500.0,0.00033,20]
[426699755,1782750646000,-500.0,0.00033,20]
[426699776,1782750646000,-800.0,0.00033,5]
[426699774,1782750646000,-800.0,0.00033,5]
[426699777,1782750646000,-800.0,0.00033,5]
[426699778,1782750646000,-157.0,0.00033002,3]
[426699766,1782750646000,-500.0,0.00033,20]
[426699772,1782750646000,-160.0,0.00033,30]
[426699779,1782750646000,-150.0,0.00033029,30]
[426699770,1782750646000,-440.05,0.00033,20]
[426699769,1782750646000,-500.0,0.00033,20]
[426699768,1782750646000,-500.0,0.00033,20]
[426699765,1782750646000,-500.0,0.00033,20]
[426699764,1782750646000,-500.0,0.00033,20]
[426699771,1782750646000,-160.0,0.00033,30]
[426699843,1782750647000,-300.0,0.00033771,2]
[426699846,1782750647000,-300.0,0.00033771,2]
[426699845,1782750647000,-536.77715252,0.00033771,2]
[426699847,1782750647000,-300.0,0.00033771,2]
[426699859,1782750647000,-300.0,0.00033771,2]
[426699842,1782750647000,-300.0,0.00033771,2]
[426699838,1782750647000,-300.0,0.00033771,2]
[426699833,1782750647000,-495.28773916,0.00033771,2]
[426699831,1782750647000,-300.0,0.00033771,2]
[426699832,1782750647000,-300.0,0.00033771,2]
[426699844,1782750647000,-300.0,0.00033771,2]
[426699848,1782750647000,-730.12015411,0.00033771,2]
[426699854,1782750647000,-300.0,0.00033771,2]
[426699850,1782750647000,-300.0,0.00033771,2]
[426699849,1782750647000,-300.0,0.00033771,2]
[426699852,1782750647000,-302.16203863,0.00033771,2]
[426699853,1782750647000,-300.0,0.00033771,2]
[426699856,1782750647000,-300.0,0.00033771,2]
[426699865,1782750647000,-300.0,0.00033771,2]
[426699866,1782750647000,-300.0,0.00033771,2]
[426699864,1782750647000,-300.0,0.00033771,2]
[426699867,1782750647000,-954.30228826,0.00033771,2]
[426699868,1782750647000,-300.0,0.00033771,2]
[426699834,1782750647000,-300.0,0.00033771,2]
[426699851,1782750647000,-300.0,0.00033771,2]
[426699837,1782750647000,-300.0,0.00033771,2]
[426699820,1782750647000,-1101.0618519,0.00033771,2]
[426699835,1782750647000,-300.0,0.00033771,2]
[426699863,1782750647000,-300.0,0.00033771,2]
[426699815,1782750647000,-1883.96,0.00033764,2]
[426699814,1782750647000,-1000.0,0.00033764,2]
[426699808,1782750647000,-158.0,0.00033762,30]
[426699809,1782750647000,-437.0,0.00033762,30]
[426699810,1782750647000,-153.0,0.00033762,30]
[426699811,1782750647000,-157.0,0.00033762,30]
[426699812,1782750647000,-385.0,0.00033762,30]
[426699813,1782750647000,-1000.0,0.00033764,2]
[426699816,1782750647000,-154.0,0.00033765,30]
[426699819,1782750647000,-437934.63797942,0.0003377,2]
[426699823,1782750647000,-300.0,0.00033771,2]
[426699827,1782750647000,-300.0,0.00033771,2]
[426699825,1782750647000,-300.0,0.00033771,2]
[426699821,1782750647000,-300.0,0.00033771,2]
[426699822,1782750647000,-300.0,0.00033771,2]
[426699824,1782750647000,-300.0,0.00033771,2]
[426699817,1782750647000,-186.66021149,0.00033767,2]
[426699826,1782750647000,-300.0,0.00033771,2]
[426699829,1782750647000,-300.0,0.00033771,2]
[426699841,1782750647000,-300.0,0.00033771,2]
[426699839,1782750647000,-607.84242655,0.00033771,2]
[426699840,1782750647000,-300.0,0.00033771,2]
[426699828,1782750647000,-300.0,0.00033771,2]
[426699830,1782750647000,-300.0,0.00033771,2]
[426699836,1782750647000,-300.0,0.00033771,2]
[426699855,1782750647000,-300.0,0.00033771,2]
[426699902,1782750647000,-300.0,0.00033771,2]
[426699857,1782750647000,-300.0,0.00033771,2]
[426699897,1782750647000,-570.75788853,0.00033771,2]
[426699896,1782750647000,-300.0,0.00033771,2]
[426699898,1782750647000,-300.0,0.00033771,2]
[426699900,1782750647000,-1101.0618519,0.00033771,2]
[426699901,1782750647000,-300.0,0.00033771,2]
[426699903,1782750647000,-300.0,0.00033771,2]
[426699905,1782750647000,-300.0,0.00033771,2]
[426699919,1782750647000,-607.84242655,0.00033771,2]
[426699899,1782750647000,-300.0,0.00033771,2]
[426699904,1782750647000,-300.0,0.00033771,2]
[426699906,1782750647000,-300.0,0.00033771,2]
[426699890,1782750647000,-300.0,0.00033771,2]
[426699911,1782750647000,-300.0,0.00033771,2]
[426699910,1782750647000,-300.0,0.00033771,2]
[426699918,1782750647000,-300.0,0.00033771,2]
[426699912,1782750647000,-300.0,0.00033771,2]
[426699908,1782750647000,-300.0,0.00033771,2]
[426699913,1782750647000,-495.28773916,0.00033771,2]
[426699914,1782750647000,-300.0,0.00033771,2]
[426699916,1782750647000,-300.0,0.00033771,2]
[426699915,1782750647000,-300.0,0.00033771,2]
[426699917,1782750647000,-300.0,0.00033771,2]
[426699920,1782750647000,-300.0,0.00033771,2]
[426699861,1782750647000,-300.0,0.00033771,2]
[426699909,1782750647000,-300.0,0.00033771,2]
[426699894,1782750647000,-446.09705538,0.00033771,2]
[426699907,1782750647000,-300.0,0.00033771,2]
[426699893,1782750647000,-300.0,0.00033771,2]
[426699862,1782750647000,-345.7536,0.00033771,2]
[426699895,1782750647000,-300.0,0.00033771,2]
[426699858,1782750647000,-300.0,0.00033771,2]
[426699869,1782750647000,-1807.30940739,0.00033771,2]
[426699871,1782750647000,-576.43989485,0.00033771,2]
[426699872,1782750647000,-301.13264824,0.00033771,2]
[426699873,1782750647000,-300.0,0.00033771,2]
[426699874,1782750647000,-311.22255108,0.00033771,2]
[426699876,1782750647000,-569.01654071,0.00033771,2]
[426699875,1782750647000,-300.0,0.00033771,2]
[426699878,1782750647000,-300.0,0.00033771,2]
[426699877,1782750647000,-300.0,0.00033771,2]
[426699879,1782750647000,-300.0,0.00033771,2]
[426699870,1782750647000,-300.0,0.00033771,2]
[426699880,1782750647000,-300.0,0.00033771,2]
[426699892,1782750647000,-300.0,0.00033771,2]
[426699883,1782750647000,-513.95923093,0.00033771,2]
[426699881,1782750647000,-300.0,0.00033771,2]
[426699884,1782750647000,-300.0,0.00033771,2]
[426699882,1782750647000,-300.0,0.00033771,2]
[426699891,1782750647000,-300.0,0.00033771,2]
[426699886,1782750647000,-300.0,0.00033771,2]
[426699888,1782750647000,-300.0,0.00033771,2]
[426699889,1782750647000,-300.0,0.00033771,2]
[426699887,1782750647000,-454.26701287,0.00033771,2]
[426699885,1782750647000,-584.66801755,0.00033771,2]
[426699966,1782750648000,-300.0,0.00033771,2]
[426699960,1782750648000,-300.0,0.00033771,2]
[426699959,1782750648000,-300.0,0.00033771,2]
[426699955,1782750648000,-300.0,0.00033771,2]
[426699961,1782750648000,-513.95923093,0.00033771,2]
[426699956,1782750648000,-300.0,0.00033771,2]
[426699958,1782750648000,-300.0,0.00033771,2]
[426699957,1782750648000,-300.0,0.00033771,2]
[426699948,1782750648000,-1807.30940739,0.00033771,2]
[426699949,1782750648000,-300.0,0.00033771,2]
[426699962,1782750648000,-300.0,0.00033771,2]
[426699965,1782750648000,-454.26701287,0.00033771,2]
[426699964,1782750648000,-300.0,0.00033771,2]
[426699968,1782750648000,-300.0,0.00033771,2]
[426699967,1782750648000,-300.0,0.00033771,2]
[426699972,1782750648000,-1000.0,0.00033773,2]
[426699980,1782750648000,-305.1348987,0.00033781,60]
[426699976,1782750648000,-158.71,0.00033777,120]
[426699979,1782750648000,-372.5023923,0.00033781,60]
[426699978,1782750648000,-3061.0,0.00033778,10]
[426699974,1782750648000,-1737.06,0.00033773,7]
[426699969,1782750648000,-1000.0,0.00033773,2]
[426699975,1782750648000,-182.861763,0.00033773,10]
[426699970,1782750648000,-1000.0,0.00033773,2]
[426699971,1782750648000,-1000.0,0.00033773,2]
[426699977,1782750648000,-212.48,0.00033778,4]